[Event "74th ARM-ch Women 2019"]
[Site "Yerevan"]
[Date "2019.01.12"]
[Round "1"]
[White "Ghukasyan, Siranush"]
[Black "Avetisyan, Mariam"]
[Result "1-0"]
[ECO "B18"]
[WhiteElo "2226"]
[BlackElo "2106"]
[Annotator "NA"]
[PlyCount "147"]
[EventDate "2019.01.12"]
[EventType "tourn"]
[EventCountry "ARM"]
[SourceTitle "playchess.com"]
[Source "ChessBase"]
[SourceQuality "1"]
[TimeControl "40/5400+30:1800+30"]

1. e4 {[%emt 0:00:00]} c6 {[%emt 0:00:00]} 2. d4 {[%emt 0:00:00]} d5 {[%emt 0:00:00]} 3. Nc3 {[%emt 0:00:00]} dxe4 {[%emt 0:00:00]} 4. Nxe4 {[%emt 0:00:00]} Bf5 {[%emt 0:00:00]} 5. Ng3 {[%emt 0:00:00]} Bg6 {[%emt 0:00:00]} 6. h4 {[%emt 0:00:00]} h6 {[%emt 0:00:00]} 7. Nf3 {[%emt 0:00:23]} e6 {[%emt 0:00:00]} 8. Ne5 {[%emt 0:02:32]} Bh7 {[%emt 0:00:08]} 9. Bc4 {[%emt 0:02:49]} Nd7 {[%emt 0:10:37]} 10. f4 {[%emt 0:01:40]} Ngf6 {[%emt 0:07:35]} 11. O-O {[%emt 0:04:38]} Bd6 {[%emt 0:15:29]} 12. Qe2 {[%emt 0:05:08]} O-O {[%emt 0:19:46]} 13. Bb3 {[%emt 0:26:36]} Qe7 {[%emt 0:10:09]} 14. Bd2 {[%emt 0:02:29]} c5 {[%emt 0:02:30]} 15. c3 {[%emt 0:02:33]} Rad8 {[%emt 0:06:12]} 16. Rae1 {[%emt 0:00:56]} cxd4 {[%emt 0:02:27]} 17. cxd4 {[%emt 0:00:06]} Bc7 {[%emt 0:06:52]} 18. Bc3 {[%emt 0:25:07]} Bb6 {[%emt 0:05:10]} 19. Nc4 {[%emt 0:02:18]} Bc7 {[%emt 0:01:51]} 20. Ne3 {[%emt 0:06:35]} Qd6 {[%emt 0:02:57]} 21. Qd2 {[%emt 0:01:17]} a5 {[%emt 0:04:56]} 22. Nc4 {[%emt 0:04:59]} Qa6 {[%emt 0:00:03]} 23. Bxa5 {[%emt 0:02:06]} b6 {[%emt 0:02:18]} 24. Bb4 {[%emt 0:00:17]} Nc5 {[%emt 0:00:37]} 25. Ne5 {[%emt 0:05:14]} Bd6 {[%emt 0:01:36]} 26. Bc2 {[%emt 0:02:41]} Bxc2 {[%emt 0:00:59]} 27. Qxc2 {[%emt 0:00:01]} Nb7 {[%emt 0:00:14]} 28. Bxd6 {[%emt 0:01:19]} Nxd6 {[%emt 0:00:19]} 29. Qb3 {[%emt 0:00:55]} Qb5 {[%emt 0:00:39]} 30. Qc3 {[%emt 0:01:00]} Nd5 {[%emt 0:00:45]} 31. Qd2 {[%emt 0:00:18]} Qb4 {[%emt 0:00:23]} 32. Qf2 {[%emt 0:00:33]} Nb5 {[%emt 0:00:29]} 33. Nc6 {[%emt 0:00:11]} Qa4 {[%emt 0:00:23]} 34. Nxd8 {[%emt 0:00:07]} Rxd8 {[%emt 0:00:05]} 35. b3 {[%emt 0:00:23]} Qxd4 {[%emt 0:00:12]} 36. Qxd4 {[%emt 0:00:13]} Nxd4 {[%emt 0:00:03]} 37. Rc1 {[%emt 0:00:42]} Nb4 {[%emt 0:01:13]} 38. Rcd1 {[%emt 0:01:47]} Nxa2 {[%emt 0:00:51]} 39. Kf2 {[%emt 0:00:01]} Nc3 {[%emt 0:00:20]} 40. Rd3 {[%emt 0:00:00]} Ncb5 {[%emt 0:00:00]} 41. Ne2 {[%emt 0:02:09]} Rd5 {[%emt 0:04:35]} 42. Nxd4 {[%emt 0:00:15]} Rxd4 {[%emt 0:05:13]} 43. Rxd4 {[%emt 0:00:06]} Nxd4 {[%emt 0:00:01]} 44. Rb1 {[%emt 0:01:09]} Kf8 {[%emt 0:01:29]} 45. h5 {[%emt 0:00:38]} Ke7 {[%emt 0:00:37]} 46. b4 {[%emt 0:00:39]} f6 {[%emt 0:01:06]} 47. g4 {[%emt 0:02:04]} Kd6 {[%emt 0:04:06]} 48. Ke3 {[%emt 0:00:25]} Kd5 {[%emt 0:01:20]} 49. Rc1 {[%emt 0:01:53]} e5 {[%emt 0:03:49]} 50. f5 {[%emt 0:03:09]} Kd6 {[%emt 0:09:18]} 51. Rc8 {[%emt 0:02:21]} Ke7 {[%emt 0:00:07]} 52. Rc7+ {[%emt 0:00:22]} Kf8 {[%emt 0:00:04]} 53. Ke4 {[%emt 0:00:20]} b5 {[%emt 0:01:58]} 54. Rb7 {[%emt 0:00:27]} Ne2 {[%emt 0:01:11]} 55. Kd5 {[%emt 0:01:07]} Nc3+ {[%emt 0:00:45]} 56. Kc5 {[%emt 0:03:03]} Ne4+ {[%emt 0:00:16]} 57. Kc6 {[%emt 0:00:15]} Nc3 {[%emt 0:00:09]} 58. Ra7 {[%emt 0:00:41]} e4 {[%emt 0:00:45]} 59. Ra3 {[%emt 0:02:31]} Nd1 {[%emt 0:00:03]} 60. Ra1 {[%emt 0:00:15]} Nf2 {[%emt 0:02:15]} 61. Re1 {[%emt 0:00:20]} Nxg4 {[%emt 0:01:25]} 62. Rxe4 {[%emt 0:00:06]} Nf2 {[%emt 0:00:41]} 63. Re2 {[%emt 0:00:43]} Nd1 {[%emt 0:00:09]} 64. Re1 {[%emt 0:00:30]} Nc3 {[%emt 0:00:06]} 65. Re3 {[%emt 0:00:21]} Nd1 {[%emt 0:00:18]} 66. Rg3 {[%emt 0:00:09]} Nf2 {[%emt 0:00:23]} 67. Kxb5 {[%emt 0:00:10]} Ne4 {[%emt 0:00:07]} 68. Rd3 {[%emt 0:00:09]} Nf2 {[%emt 0:00:28]} 69. Rd4 {[%emt 0:00:11]} Nh1 {[%emt 0:00:41]} 70. Kc6 {[%emt 0:00:47]} Ng3 {[%emt 0:00:05]} 71. Rd8+ {[%emt 0:00:10]} Ke7 {[%emt 0:00:14]} 72. Rd7+ {[%emt 0:00:05]} Ke8 {[%emt 0:00:21]} 73. b5 {[%emt 0:00:21]} Nxf5 {[%emt 0:00:14]} 74. b6 {[%emt 0:00:05]} 1-0

[Event "74th ARM-ch Women 2019"]
[Site "Yerevan"]
[Date "2019.01.12"]
[Round "1"]
[White "Gaboyan, Susanna"]
[Black "Kursova, Maria"]
[Result "1/2-1/2"]
[ECO "A05"]
[WhiteElo "2111"]
[BlackElo "2279"]
[Annotator "NA"]
[PlyCount "92"]
[EventDate "2019.01.12"]
[EventType "tourn"]
[EventCountry "ARM"]
[SourceTitle "playchess.com"]
[Source "ChessBase"]
[SourceQuality "1"]
[TimeControl "40/5400+30:1800+30"]

1. Nf3 {[%emt 0:00:00]} Nf6 {[%emt 0:00:00]} 2. g3 c5 {[%emt 0:01:01]} 3. Bg2 {[%emt 0:00:00]} Nc6 {[%emt 0:01:55]} 4. d4 {[%emt 0:00:02]} d5 {[%emt 0:11:55]} 5. O-O {[%emt 0:00:18]} e6 {[%emt 0:07:53]} 6. c4 {[%emt 0:00:13]} dxc4 {[%emt 0:01:41]} 7. Qa4 {[%emt 0:00:58]} Bd7 {[%emt 0:03:16]} 8. dxc5 {[%emt 0:01:51]} Bxc5 {[%emt 0:06:12]} 9. Qxc4 {[%emt 0:00:17]} Be7 {[%emt 0:06:25]} 10. Nc3 {[%emt 0:00:59]} Rc8 {[%emt 0:05:26]} 11. e4 {[%emt 0:04:25]} Ne5 {[%emt 0:15:19]} 12. Qe2 {[%emt 0:00:59]} Nxf3+ {[%emt 0:00:14]} 13. Bxf3 {[%emt 0:00:10]} e5 {[%emt 0:03:23]} 14. Bg5 {[%emt 0:02:36]} O-O {[%emt 0:06:04]} 15. Rfd1 {[%emt 0:03:55]} Qe8 {[%emt 0:02:42]} 16. Bxf6 {[%emt 0:05:08]} Bxf6 {[%emt 0:00:02]} 17. Rxd7 {[%emt 0:00:21]} Qxd7 {[%emt 0:00:42]} 18. Bg4 {[%emt 0:00:08]} Qc6 {[%emt 0:04:13]} 19. Bxc8 {[%emt 0:00:11]} Rxc8 {[%emt 0:00:09]} 20. Rd1 {[%emt 0:00:53]} Be7 {[%emt 0:01:52]} 21. Rd5 {[%emt 0:11:06]} a6 {[%emt 0:04:00]} 22. Qd3 {[%emt 0:06:05]} h6 {[%emt 0:05:38]} 23. Rd7 {[%emt 0:09:17]} Bc5 {[%emt 0:01:07]} 24. Qd5 {[%emt 0:04:40]} Qf6 {[%emt 0:00:48]} 25. Qd2 {[%emt 0:02:37]} b5 {[%emt 0:01:38]} 26. Nd5 {[%emt 0:03:45]} Qc6 {[%emt 0:00:45]} 27. b4 {[%emt 0:06:02]} Kf8 {[%emt 0:01:22]} 28. Rc7 {[%emt 0:23:46]} Rxc7 {[%emt 0:00:52]} 29. Nxc7 {[%emt 0:00:10]} Bxf2+ {[%emt 0:01:20]} 30. Kxf2 {[%emt 0:00:08]} Qxc7 {[%emt 0:00:06]} 31. Qd5 {[%emt 0:00:10]} Ke7 {[%emt 0:01:22]} 32. Kg2 {[%emt 0:03:57]} g6 {[%emt 0:01:39]} 33. a3 {[%emt 0:02:00]} Qd6 {[%emt 0:02:52]} 34. Qa8 {[%emt 0:00:19]} f5 {[%emt 0:00:43]} 35. exf5 {[%emt 0:03:27]} gxf5 {[%emt 0:00:02]} 36. Qc8 {[%emt 0:00:19]} Qe6 {[%emt 0:01:53]} 37. Qc7+ {[%emt 0:03:05]} Kf8 {[%emt 0:01:10]} 38. Qh7 {[%emt 0:02:59]} Qf6 {[%emt 0:00:35]} 39. Kh3 {[%emt 0:01:35]} e4 {[%emt 0:00:21]} 40. Qa7 {[%emt 0:00:00]} Kg8 {[%emt 0:00:00]} 41. Qd7 {[%emt 0:13:14]} Kf8 {[%emt 0:12:54]} 42. Qc8+ {[%emt 0:04:15]} Kg7 {[%emt 0:01:09]} 43. g4 {[%emt 0:02:12]} fxg4+ {[%emt 0:11:01]} 44. Qxg4+ {[%emt 0:00:26]} Kf7 {[%emt 0:00:18]} 45. Qxe4 {[%emt 0:01:40]} Qc3+ {[%emt 0:00:18]} 46. Kg4 {[%emt 0:00:27]} Qxa3 {[%emt 0:00:55]} 1/2-1/2

[Event "74th ARM-ch Women 2019"]
[Site "Yerevan"]
[Date "2019.01.12"]
[Round "1"]
[White "Grigoryan, Arpine"]
[Black "Khachatryan, Anna"]
[Result "0-1"]
[ECO "B31"]
[WhiteElo "1962"]
[BlackElo "2110"]
[Annotator "NA"]
[PlyCount "176"]
[EventDate "2019.01.12"]
[EventType "tourn"]
[EventCountry "ARM"]
[SourceTitle "playchess.com"]
[Source "ChessBase"]
[SourceQuality "1"]
[TimeControl "40/5400+30:1800+30"]

1. e4 {[%emt 0:00:00]} c5 {[%emt 0:00:00]} 2. Nf3 {[%emt 0:00:00]} Nc6 {[%emt 0:00:00]} 3. Bb5 {[%emt 0:00:12]} g6 {[%emt 0:00:00]} 4. Bxc6 {[%emt 0:00:09]} dxc6 {[%emt 0:00:00]} 5. d3 {[%emt 0:00:08]} Bg7 {[%emt 0:00:02]} 6. h3 {[%emt 0:00:05]} Nf6 {[%emt 0:00:11]} 7. Nc3 {[%emt 0:03:04]} Nd7 {[%emt 0:01:10]} 8. Be3 {[%emt 0:06:30]} e5 {[%emt 0:01:07]} 9. O-O {[%emt 0:01:47]} Qe7 {[%emt 0:00:38]} 10. Nd2 {[%emt 0:11:05]} Nf8 {[%emt 0:07:06]} 11. f4 {[%emt 0:05:44]} exf4 {[%emt 0:00:08]} 12. Bxf4 {[%emt 0:00:10]} Be6 {[%emt 0:35:35]} 13. Qe1 {[%emt 0:21:09]} O-O-O {[%emt 0:07:49]} 14. Qg3 {[%emt 0:08:08]} h6 {[%emt 0:21:53]} 15. Bb8 {[%emt 0:15:49]} b6 {[%emt 0:01:12]} 16. a4 {[%emt 0:02:19]} Kb7 {[%emt 0:08:37]} 17. Be5 {[%emt 0:04:09]} f6 {[%emt 0:00:12]} 18. Bf4 {[%emt 0:00:05]} Bf7 {[%emt 0:04:44]} 19. a5 {[%emt 0:01:43]} Ne6 {[%emt 0:00:40]} 20. e5 {[%emt 0:06:47]} f5 {[%emt 0:05:35]} 21. Nc4 {[%emt 0:00:55]} Nxf4 {[%emt 0:00:38]} 22. Qxf4 {[%emt 0:00:47]} Bxc4 {[%emt 0:01:27]} 23. Qxc4 {[%emt 0:01:47]} b5 {[%emt 0:01:03]} 24. Nxb5 {[%emt 0:02:37]} cxb5 {[%emt 0:00:01]} 25. Qxb5+ {[%emt 0:00:06]} Ka8 {[%emt 0:00:08]} 26. Qc6+ {[%emt 0:00:25]} Qb7 {[%emt 0:00:10]} 27. Qxg6 {[%emt 0:00:20]} Bxe5 {[%emt 0:00:04]} 28. a6 {[%emt 0:00:51]} Qd5 {[%emt 0:02:02]} 29. Qxf5 {[%emt 0:01:42]} Bd4+ {[%emt 0:01:17]} 30. Kh1 {[%emt 0:00:10]} Qxf5 {[%emt 0:00:05]} 31. Rxf5 {[%emt 0:00:04]} Rhf8 {[%emt 0:01:16]} 32. Rh5 {[%emt 0:01:49]} Rd6 {[%emt 0:00:32]} 33. c3 {[%emt 0:00:35]} Be3 {[%emt 0:00:29]} 34. Re5 {[%emt 0:00:18]} Bg5 {[%emt 0:00:35]} 35. Rxc5 {[%emt 0:01:19]} Rxd3 {[%emt 0:00:13]} 36. Re5 {[%emt 0:01:28]} Rfd8 37. Rae1 {[%emt 0:03:19]} Rd1 {[%emt 0:01:04]} 38. Re8 {[%emt 0:00:10]} Rxe1+ {[%emt 0:00:07]} 39. Rxe1 {[%emt 0:00:04]} Kb8 {[%emt 0:00:05]} 40. Re4 {[%emt 0:00:00]} Kc7 {[%emt 0:00:00]} 41. h4 {[%emt 0:04:37]} Bf6 {[%emt 0:03:22]} 42. b4 {[%emt 0:05:36]} Rd3 {[%emt 0:08:03]} 43. b5 {[%emt 0:03:38]} Rxc3 {[%emt 0:02:38]} 44. g3 {[%emt 0:01:50]} Kd7 {[%emt 0:17:48]} 45. Rb4 {[%emt 0:05:47]} Bd8 {[%emt 0:02:09]} 46. Rg4 {[%emt 0:00:35]} Bb6 {[%emt 0:00:26]} 47. Rg6 {[%emt 0:00:41]} Be3 {[%emt 0:00:29]} 48. Kg2 {[%emt 0:01:40]} Ke7 {[%emt 0:00:28]} 49. g4 {[%emt 0:04:17]} Kf7 {[%emt 0:00:27]} 50. h5 {[%emt 0:00:29]} Rb3 {[%emt 0:00:08]} 51. Kf3 {[%emt 0:02:31]} Bg5+ {[%emt 0:00:06]} 52. Ke4 {[%emt 0:00:22]} Rb4+ {[%emt 0:00:09]} 53. Kf3 {[%emt 0:00:27]} Rxb5 {[%emt 0:00:34]} 54. Ke4 {[%emt 0:00:12]} Rb4+ {[%emt 0:00:20]} 55. Ke5 {[%emt 0:01:36]} Rxg4 {[%emt 0:00:52]} 56. Rc6 {[%emt 0:00:05]} Be3 {[%emt 0:00:18]} 57. Kf5 {[%emt 0:03:07]} Rb4 {[%emt 0:01:05]} 58. Ke5 {[%emt 0:00:33]} Rh4 {[%emt 0:00:58]} 59. Rc7+ {[%emt 0:00:36]} Ke8 {[%emt 0:00:05]} 60. Ke6 {[%emt 0:00:15]} Re4+ {[%emt 0:00:45]} 61. Kd5 {[%emt 0:01:11]} Ra4 62. Rc6 {[%emt 0:00:33]} Kf7 {[%emt 0:01:11]} 63. Ke5 {[%emt 0:00:35]} Ke7 {[%emt 0:00:35]} 64. Re6+ {[%emt 0:02:19]} Kd7 {[%emt 0:00:14]} 65. Rd6+ {[%emt 0:00:25]} Kc7 {[%emt 0:00:05]} 66. Re6 {[%emt 0:00:10]} Rb4 {[%emt 0:01:07]} 67. Kd5 {[%emt 0:00:17]} Bg5 {[%emt 0:00:40]} 68. Rc6+ {[%emt 0:00:31]} Kb8 {[%emt 0:00:28]} 69. Rg6 {[%emt 0:00:14]} Kc7 {[%emt 0:00:17]} 70. Rg7+ {[%emt 0:00:32]} Kb6 {[%emt 0:00:32]} 71. Rb7+ {[%emt 0:00:05]} Ka5 {[%emt 0:00:01]} 72. Rxa7 {[%emt 0:00:03]} Rb6 73. Ke4 {[%emt 0:01:25]} Rf6 {[%emt 0:01:01]} 74. Ke5 {[%emt 0:01:02]} Rf8 {[%emt 0:00:38]} 75. Rb7 {[%emt 0:00:47]} Kxa6 {[%emt 0:00:04]} 76. Rb3 {[%emt 0:00:02]} Rf1 {[%emt 0:00:27]} 77. Rh3 {[%emt 0:00:05]} Kb5 {[%emt 0:00:10]} 78. Ke4 {[%emt 0:00:19]} Kc4 {[%emt 0:00:23]} 79. Rh2 {[%emt 0:00:37]} Rf4+ {[%emt 0:00:29]} 80. Ke5 {[%emt 0:00:05]} Kd3 {[%emt 0:00:13]} 81. Ra2 {[%emt 0:01:03]} Ke3 {[%emt 0:00:55]} 82. Ra3+ {[%emt 0:00:25]} Kf2 {[%emt 0:00:07]} 83. Rb3 {[%emt 0:00:11]} Rh4 {[%emt 0:00:42]} 84. Kf5 {[%emt 0:00:08]} Rxh5 {[%emt 0:00:05]} 85. Rb2+ {[%emt 0:00:12]} Kf3 {[%emt 0:00:09]} 86. Kg6 {[%emt 0:00:27]} Rh1 {[%emt 0:00:03]} 87. Rb5 {[%emt 0:01:11]} Kg4 {[%emt 0:00:21]} 88. Ra5 {[%emt 0:00:12]} Bf4 {[%emt 0:00:08]} 0-1

[Event "74th ARM-ch Women 2019"]
[Site "Yerevan"]
[Date "2019.01.12"]
[Round "1"]
[White "Hakobyan, Astghik"]
[Black "Gevorgyan, Maria"]
[Result "0-1"]
[ECO "B40"]
[WhiteElo "1776"]
[BlackElo "2228"]
[Annotator "NA"]
[PlyCount "94"]
[EventDate "2019.01.12"]
[EventType "tourn"]
[EventCountry "ARM"]
[SourceTitle "playchess.com"]
[Source "ChessBase"]
[SourceQuality "1"]
[TimeControl "40/5400+30:1800+30"]

1. e4 {[%emt 0:00:00]} c5 {[%emt 0:00:00]} 2. Nf3 {[%emt 0:00:00]} e6 {[%emt 0:00:00]} 3. d3 {[%emt 0:00:00]} d5 {[%emt 0:00:32]} 4. Nbd2 {[%emt 0:00:00]} Nf6 {[%emt 0:01:05]} 5. g3 {[%emt 0:00:13]} Be7 {[%emt 0:06:51]} 6. Bg2 {[%emt 0:00:17]} Nc6 {[%emt 0:00:05]} 7. O-O {[%emt 0:00:29]} O-O {[%emt 0:00:15]} 8. e5 {[%emt 0:00:36]} Nd7 {[%emt 0:04:37]} 9. Re1 {[%emt 0:00:10]} b5 {[%emt 0:00:05]} 10. Nf1 {[%emt 0:01:42]} Re8 {[%emt 0:03:52]} 11. h4 {[%emt 0:01:56]} a5 {[%emt 0:02:19]} 12. N1h2 {[%emt 0:03:07]} b4 {[%emt 0:00:46]} 13. Ng4 {[%emt 0:03:51]} Bf8 {[%emt 0:08:03]} 14. Bg5 {[%emt 0:17:19]} Qc7 {[%emt 0:01:02]} 15. Bf4 {[%emt 0:00:55]} a4 {[%emt 0:27:34]} 16. Ng5 {[%emt 0:12:40]} h6 {[%emt 0:08:02]} 17. Nh3 {[%emt 0:25:20]} Ba6 {[%emt 0:09:42]} 18. Bxd5 {[%emt 0:09:05]} exd5 {[%emt 0:01:30]} 19. e6 {[%emt 0:00:07]} Nde5 {[%emt 0:06:20]} 20. Rxe5 {[%emt 0:06:22]} Nxe5 {[%emt 0:06:27]} 21. Bxe5 {[%emt 0:00:44]} Bd6 {[%emt 0:00:18]} 22. Nxh6+ {[%emt 0:04:09]} Kf8 {[%emt 0:00:04]} 23. Bxd6+ {[%emt 0:03:08]} Qxd6 {[%emt 0:00:06]} 24. exf7 {[%emt 0:02:37]} Red8 {[%emt 0:03:27]} 25. Nf5 {[%emt 0:02:35]} Qg6 {[%emt 0:00:05]} 26. Ne3 {[%emt 0:02:06]} Kxf7 {[%emt 0:03:48]} 27. Qf3+ {[%emt 0:02:20]} Kg8 {[%emt 0:02:38]} 28. Nxd5 {[%emt 0:00:40]} Qf7 {[%emt 0:01:26]} 29. Qxf7+ {[%emt 0:00:59]} Kxf7 {[%emt 0:00:02]} 30. Ng5+ {[%emt 0:00:11]} Kg6 {[%emt 0:00:33]} 31. Nc7 {[%emt 0:00:58]} Ra7 {[%emt 0:00:04]} 32. Nge6 {[%emt 0:00:45]} Rc8 {[%emt 0:00:09]} 33. Nxa6 {[%emt 0:00:32]} Rxa6 {[%emt 0:00:01]} 34. Nf4+ {[%emt 0:00:14]} Kf5 {[%emt 0:00:30]} 35. Re1 {[%emt 0:00:42]} c4 {[%emt 0:01:09]} 36. Nd5 {[%emt 0:00:15]} cxd3 {[%emt 0:02:39]} 37. Ne7+ {[%emt 0:00:48]} Kf6 {[%emt 0:00:01]} 38. Nd5+ {[%emt 0:00:30]} Kf7 {[%emt 0:00:26]} 39. cxd3 {[%emt 0:00:26]} b3 {[%emt 0:00:59]} 40. Nb4 {[%emt 0:00:00]} Rb6 {[%emt 0:00:00]} 41. a3 {[%emt 0:01:33]} Rxb4 {[%emt 0:16:28]} 42. axb4 {[%emt 0:00:08]} a3 {[%emt 0:00:03]} 43. Kg2 {[%emt 0:07:11]} a2 {[%emt 0:00:12]} 44. Ra1 {[%emt 0:02:30]} Rc2 {[%emt 0:01:22]} 45. b5 {[%emt 0:00:06]} Rxb2 {[%emt 0:00:13]} 46. b6 {[%emt 0:00:29]} Re2 {[%emt 0:00:05]} 47. d4 {[%emt 0:02:55]} Re6 {[%emt 0:00:30]} 0-1

[Event "74th ARM-ch Women 2019"]
[Site "Yerevan"]
[Date "2019.01.13"]
[Round "2"]
[White "Kursova, Maria"]
[Black "Grigoryan, Arpine"]
[Result "0-1"]
[ECO "D37"]
[WhiteElo "2279"]
[BlackElo "1962"]
[Annotator "NA"]
[PlyCount "66"]
[EventDate "2019.01.12"]
[EventType "tourn"]
[EventCountry "ARM"]
[SourceTitle "playchess.com"]
[Source "ChessBase"]
[SourceQuality "1"]
[TimeControl "40/5400+30:1800+30"]

1. d4 {[%emt 0:00:53]} Nf6 {[%emt 0:00:00]} 2. Nf3 {[%emt 0:00:10]} e6 {[%emt 0:00:00]} 3. c4 {[%emt 0:00:12]} d5 {[%emt 0:00:33]} 4. Nc3 {[%emt 0:00:37]} dxc4 {[%emt 0:02:04]} 5. e4 {[%emt 0:05:26]} Bb4 {[%emt 0:08:15]} 6. Bg5 {[%emt 0:06:40]} c5 {[%emt 0:01:41]} 7. Bxc4 {[%emt 0:05:58]} cxd4 {[%emt 0:03:53]} 8. Nxd4 {[%emt 0:01:58]} Bxc3+ {[%emt 0:00:39]} 9. bxc3 {[%emt 0:00:09]} Qa5 {[%emt 0:00:22]} 10. Bb5+ {[%emt 0:18:53]} Nbd7 {[%emt 0:02:25]} 11. Bxf6 {[%emt 0:03:24]} Qxc3+ {[%emt 0:01:56]} 12. Kf1 {[%emt 0:05:48]} gxf6 {[%emt 0:00:08]} 13. Nxe6 {[%emt 0:07:24]} Qe5 {[%emt 0:25:07]} 14. Nd4 {[%emt 0:03:09]} O-O {[%emt 0:02:25]} 15. Qg4+ {[%emt 0:27:39]} Kh8 {[%emt 0:01:12]} 16. Rd1 {[%emt 0:00:05]} Nb6 {[%emt 0:14:01]} 17. Qh4 {[%emt 0:01:23]} Rg8 {[%emt 0:08:38]} 18. Be2 {[%emt 0:01:00]} f5 {[%emt 0:11:07]} 19. f4 {[%emt 0:04:50]} Qg7 {[%emt 0:00:40]} 20. Bf3 {[%emt 0:00:05]} fxe4 {[%emt 0:00:37]} 21. Bxe4 {[%emt 0:00:02]} Bg4 {[%emt 0:00:44]} 22. Rd3 {[%emt 0:03:44]} f5 {[%emt 0:05:19]} 23. Ne6 {[%emt 0:00:31]} Qa1+ {[%emt 0:00:07]} 24. Kf2 {[%emt 0:00:02]} Qb2+ {[%emt 0:00:12]} 25. Kg3 {[%emt 0:00:57]} fxe4 {[%emt 0:00:38]} 26. Ng5 {[%emt 0:00:24]} Bf5 {[%emt 0:01:48]} 27. Rb3 {[%emt 0:01:15]} Qd4 {[%emt 0:02:07]} 28. h3 {[%emt 0:00:28]} Rxg5+ {[%emt 0:01:36]} 29. fxg5 {[%emt 0:00:02]} Nd5 {[%emt 0:00:24]} 30. Rc1 {[%emt 0:01:18]} Qe5+ {[%emt 0:00:11]} 31. Kf2 {[%emt 0:00:06]} Nf4 {[%emt 0:02:16]} 32. Re1 {[%emt 0:00:52]} Qd4+ {[%emt 0:00:39]} 33. Kg3 {[%emt 0:00:27]} Nd3 {[%emt 0:00:06]} 0-1

[Event "74th ARM-ch Women 2019"]
[Site "Yerevan"]
[Date "2019.01.13"]
[Round "2"]
[White "Gevorgyan, Maria"]
[Black "Gaboyan, Susanna"]
[Result "1-0"]
[ECO "B00"]
[WhiteElo "2228"]
[BlackElo "2111"]
[Annotator "NA"]
[PlyCount "57"]
[EventDate "2019.01.12"]
[EventType "tourn"]
[EventCountry "ARM"]
[SourceTitle "playchess.com"]
[Source "ChessBase"]
[SourceQuality "1"]
[TimeControl "40/5400+30:1800+30"]

1. e4 {[%emt 0:00:00]} Nc6 {[%emt 0:00:00]} 2. Nf3 {[%emt 0:00:00]} d6 {[%emt 0:00:00]} 3. d4 {[%emt 0:00:37]} Nf6 {[%emt 0:00:09]} 4. Nc3 {[%emt 0:00:48]} g6 {[%emt 0:00:11]} 5. h3 {[%emt 0:03:46]} Bg7 {[%emt 0:00:10]} 6. Be3 {[%emt 0:01:14]} O-O {[%emt 0:00:19]} 7. Qd2 {[%emt 0:04:16]} a6 {[%emt 0:00:17]} 8. d5 {[%emt 0:11:30]} Nb8 {[%emt 0:00:16]} 9. a4 {[%emt 0:01:29]} Nbd7 {[%emt 0:05:46]} 10. Bd3 {[%emt 0:08:40]} Nc5 {[%emt 0:03:05]} 11. O-O {[%emt 0:12:44]} a5 {[%emt 0:02:48]} 12. Rae1 {[%emt 0:06:04]} Nfd7 {[%emt 0:10:30]} 13. Bg5 {[%emt 0:08:18]} f6 {[%emt 0:08:37]} 14. Be3 {[%emt 0:00:46]} e5 {[%emt 0:00:12]} 15. dxe6 {[%emt 0:02:19]} Nxe6 {[%emt 0:00:21]} 16. Bc4 {[%emt 0:01:53]} Ne5 {[%emt 0:00:20]} 17. Nxe5 {[%emt 0:04:22]} fxe5 {[%emt 0:00:20]} 18. Bg5 {[%emt 0:01:31]} Qe8 {[%emt 0:01:14]} 19. Nb5 {[%emt 0:03:13]} Rf7 {[%emt 0:06:32]} 20. f4 {[%emt 0:05:47]} exf4 {[%emt 0:08:10]} 21. Bxf4 {[%emt 0:00:05]} Kh8 {[%emt 0:14:47]} 22. Bh6 {[%emt 0:02:19]} Re7 {[%emt 0:05:37]} 23. Rf3 {[%emt 0:04:46]} Bxh6 {[%emt 0:10:08]} 24. Qxh6 {[%emt 0:00:08]} Bd7 {[%emt 0:00:09]} 25. Ref1 {[%emt 0:01:39]} Bxb5 {[%emt 0:02:03]} 26. axb5 {[%emt 0:00:01]} Rg7 {[%emt 0:03:33]} 27. Rf6 {[%emt 0:00:08]} Nd4 {[%emt 0:03:15]} 28. Rf7 {[%emt 0:01:06]} Nf5 {[%emt 0:00:22]} 29. R1xf5 {[%emt 0:00:09]} 1-0

[Event "74th ARM-ch Women 2019"]
[Site "Yerevan"]
[Date "2019.01.13"]
[Round "2"]
[White "Khachatryan, Anna"]
[Black "Ghukasyan, Siranush"]
[Result "1/2-1/2"]
[ECO "D02"]
[WhiteElo "2110"]
[BlackElo "2226"]
[Annotator "NA"]
[PlyCount "46"]
[EventDate "2019.01.12"]
[EventType "tourn"]
[EventCountry "ARM"]
[SourceTitle "playchess.com"]
[Source "ChessBase"]
[SourceQuality "1"]
[TimeControl "40/5400+30:1800+30"]

1. Nf3 {[%emt 0:00:00]} d5 {[%emt 0:00:00]} 2. d4 {[%emt 0:00:00]} Nf6 {[%emt 0:00:00]} 3. Bf4 {[%emt 0:00:00]} Bf5 {[%emt 0:04:47]} 4. e3 {[%emt 0:03:21]} e6 {[%emt 0:00:13]} 5. Be2 {[%emt 0:02:27]} Be7 {[%emt 0:00:51]} 6. O-O {[%emt 0:00:52]} h6 {[%emt 0:00:58]} 7. c4 {[%emt 0:01:22]} c6 {[%emt 0:01:20]} 8. Nc3 {[%emt 0:06:48]} O-O {[%emt 0:00:37]} 9. h3 {[%emt 0:04:28]} Nbd7 {[%emt 0:00:47]} 10. Qb3 {[%emt 0:00:58]} Qb6 {[%emt 0:02:59]} 11. c5 {[%emt 0:01:16]} Qxb3 {[%emt 0:00:16]} 12. axb3 {[%emt 0:00:01]} Ne4 {[%emt 0:02:42]} 13. b4 {[%emt 0:05:11]} a6 {[%emt 0:01:06]} 14. Bh2 {[%emt 0:05:03]} f6 {[%emt 0:09:59]} 15. Nxe4 {[%emt 0:08:23]} Bxe4 {[%emt 0:00:33]} 16. Nd2 {[%emt 0:00:44]} Bg6 {[%emt 0:04:20]} 17. Nb3 {[%emt 0:01:59]} Kf7 {[%emt 0:06:43]} 18. Na5 {[%emt 0:05:53]} Ra7 {[%emt 0:00:06]} 19. Ra3 {[%emt 0:28:12]} Bh7 {[%emt 0:08:09]} 20. Nb3 {[%emt 0:04:30]} Raa8 {[%emt 0:04:30]} 21. Na5 {[%emt 0:00:11]} Ra7 {[%emt 0:00:05]} 22. Nb3 {[%emt 0:00:04]} Raa8 {[%emt 0:00:04]} 23. Na5 {[%emt 0:00:03]} Ra7 1/2-1/2